[Event "Titled Tuesday Blitz March 07 Early 2023"]
[White "Avazkhonov, Alikhon"]
[Black "Ezat, Mohamed"]
[WhiteFideId "14208504"]
[BlackFideId "10600906"]
[WhiteElo "1739"]
[BlackElo "2386"]
[Result "0-1"]
[Round "10"]
[TimeControl "180+2"]
[Date "2023.03.07"]
[WhiteClock "0:00:01"]
[BlackClock "0:01:14"]

1. d4 {[%clk 0:02:48]}  d6 {[%clk 0:02:58]} 2. e4 {[%clk 0:02:47]}  g6 {[%clk 0:02:57]} 3. Nc3 {[%clk 0:02:47]}  Bg7 {[%clk 0:02:57]} 4. f3 {[%clk 0:02:48]}  e6 {[%clk 0:02:58]} 5. Be3 {[%clk 0:02:48]}  Ne7 {[%clk 0:02:58]} 6. Qd2 {[%clk 0:02:48]}  Nd7 {[%clk 0:02:58]} 7. O-O-O {[%clk 0:02:49]}  a6 {[%clk 0:02:57]} 8. Kb1 {[%clk 0:02:49]}  b5 {[%clk 0:02:56]} 9. Bh6 {[%clk 0:02:42]}  Bf6 {[%clk 0:02:37]} 10. f4 {[%clk 0:00:43]}  Rg8 {[%clk 0:02:26]} 11. g4 {[%clk 0:00:40]}  Bb7 {[%clk 0:02:25]} 12. Bg2 {[%clk 0:00:38]}  Nb6 {[%clk 0:02:22]} 13. e5 {[%clk 0:00:12]}  Bxg2 {[%clk 0:02:21]} 14. Qxg2 {[%clk 0:00:13]}  Bh8 {[%clk 0:02:20]} 15. Nf3 {[%clk 0:00:12]}  Ned5 {[%clk 0:02:19]} 16. Nxd5 {[%clk 0:00:07]}  Nxd5 {[%clk 0:02:18]} 17. Qe2 {[%clk 0:00:08]}  c6 {[%clk 0:02:12]} 18. h4 {[%clk 0:00:04]}  Qa5 {[%clk 0:02:11]} 19. h5 {[%clk 0:00:04]}  Qb4 {[%clk 0:02:07]} 20. Ka1 {[%clk 0:00:03]}  Qa4 {[%clk 0:02:02]} 21. c3 {[%clk 0:00:02]}  b4 {[%clk 0:01:57]} 22. c4 {[%clk 0:00:03]}  b3 {[%clk 0:01:58]} 23. a3 {[%clk 0:00:02]}  Nb4 {[%clk 0:01:58]} 24. Kb1 {[%clk 0:00:02]}  Nc2 {[%clk 0:01:58]} 25. exd6 {[%clk 0:00:02]}  O-O-O {[%clk 0:01:55]} 26. Ne5 {[%clk 0:00:02]}  Rxd6 {[%clk 0:01:52]} 27. Nxf7 {[%clk 0:00:02]}  Rxd4 {[%clk 0:01:45]} 28. Qxe6+ {[%clk 0:00:02]}  Kb7 {[%clk 0:01:40]} 29. Rxd4 {[%clk 0:00:02]}  Nxd4 {[%clk 0:01:37]} 30. Nd6+ {[%clk 0:00:03]}  Kb6 {[%clk 0:01:35]} 31. Qxg8 {[%clk 0:00:03]}  Nf3 {[%clk 0:01:24]} 32. Qb8+ {[%clk 0:00:04]}  Kc5 {[%clk 0:01:23]} 33. Ne4+ {[%clk 0:00:04]}  Kd4 {[%clk 0:01:23]} 34. Rd1+ {[%clk 0:00:03]}  Ke3 {[%clk 0:01:21]} 35. Qb6+ {[%clk 0:00:03]}  Ke2 {[%clk 0:01:19]} 36. Rc1 {[%clk 0:00:02]}  Bd4 {[%clk 0:01:17]} 37. Ng3+ {[%clk 0:00:03]}  Kd3 {[%clk 0:01:14]} 38. Qc7 {[%clk 0:00:02]}  Nd2+ {[%clk 0:01:13]} 39. Ka1 {[%clk 0:00:01]}  Qxa3# {[%clk 0:01:14]} 0-1


[Site "https://www.chess.com"]

[Event "Titled Tuesday Blitz March 07 Early 2023"]
[White "Shevtchenko, Olesya"]
[Black "Kalajzic, Ivan"]
[WhiteFideId "24131890"]
[BlackFideId "14506378"]
[WhiteElo "2003"]
[BlackElo "2203"]
[Result "0-1"]
[Round "10"]
[TimeControl "180+2"]
[Date "2023.03.07"]
[WhiteClock "0:00:12"]
[BlackClock "0:01:17"]

1. h4 {[%clk 0:02:59]}  Nc6 {[%clk 0:03:00]} 2. h5 {[%clk 0:02:58]}  h6 {[%clk 0:02:59]} 3. e4 {[%clk 0:02:57]}  e5 {[%clk 0:02:59]} 4. c3 {[%clk 0:02:57]}  d5 {[%clk 0:02:58]} 5. exd5 {[%clk 0:02:52]}  Qxd5 {[%clk 0:02:58]} 6. Qa4 {[%clk 0:02:51]}  Nf6 {[%clk 0:02:52]} 7. Qh4 {[%clk 0:02:47]}  Be7 {[%clk 0:02:49]} 8. Bc4 {[%clk 0:02:44]}  Qd6 {[%clk 0:02:46]} 9. d3 {[%clk 0:02:40]}  Be6 {[%clk 0:02:41]} 10. Nd2 {[%clk 0:02:35]}  O-O-O {[%clk 0:02:39]} 11. Ngf3 {[%clk 0:02:29]}  Ng4 {[%clk 0:02:33]} 12. Bxe6+ {[%clk 0:02:14]}  Qxe6 {[%clk 0:02:31]} 13. Qh3 {[%clk 0:01:57]}  Rxd3 {[%clk 0:02:29]} 14. O-O {[%clk 0:01:32]}  Rhd8 {[%clk 0:02:21]} 15. Re1 {[%clk 0:01:26]}  Bc5 {[%clk 0:02:20]} 16. Ne4 {[%clk 0:01:26]}  Bb6 {[%clk 0:02:18]} 17. Be3 {[%clk 0:01:07]}  f5 {[%clk 0:02:03]} 18. Nc5 {[%clk 0:00:56]}  Bxc5 {[%clk 0:02:01]} 19. Bxc5 {[%clk 0:00:57]}  e4 {[%clk 0:01:56]} 20. Nd4 {[%clk 0:00:48]}  Nxd4 {[%clk 0:01:44]} 21. Qxd3 {[%clk 0:00:46]}  exd3 {[%clk 0:01:44]} 22. Bxd4 {[%clk 0:00:40]}  Qf7 {[%clk 0:01:39]} 23. Rad1 {[%clk 0:00:38]}  Qxh5 {[%clk 0:01:39]} 24. Rxd3 {[%clk 0:00:36]}  Qh2+ {[%clk 0:01:38]} 25. Kf1 {[%clk 0:00:36]}  Qh1+ {[%clk 0:01:37]} 26. Ke2 {[%clk 0:00:37]}  Re8+ {[%clk 0:01:38]} 27. Be3 {[%clk 0:00:33]}  Qxg2 {[%clk 0:01:29]} 28. Kd1 {[%clk 0:00:22]}  Nxe3+ {[%clk 0:01:24]} 29. fxe3 {[%clk 0:00:18]}  Qxb2 {[%clk 0:01:22]} 30. Re2 {[%clk 0:00:12]}  Qb1+ {[%clk 0:01:18]} 31. Kd2 {[%clk 0:00:12]}  Rd8 {[%clk 0:01:18]} 32. Rd7 {[%clk 0:00:12]}  Rxd7# {[%clk 0:01:17]} 0-1


[Site "https://www.chess.com"]

[Event "Titled Tuesday Blitz March 07 Early 2023"]
[White "Karas, Marek"]
[Black "Pino Perez, Lazaro"]
[WhiteFideId "14928558"]
[BlackFideId "3517055"]
[WhiteElo "2233"]
[BlackElo "2170"]
[Result "0-1"]
[Round "10"]
[TimeControl "180+2"]
[Date "2023.03.07"]
[WhiteClock "0:00:04"]
[BlackClock "0:00:06"]

1. d4 {[%clk 0:01:59]}  d5 {[%clk 0:02:59]} 2. Nc3 {[%clk 0:01:55]}  Nf6 {[%clk 0:02:55]} 3. Bf4 {[%clk 0:01:54]}  Bf5 {[%clk 0:02:31]} 4. f3 {[%clk 0:01:54]}  h6 {[%clk 0:02:20]} 5. g4 {[%clk 0:01:48]}  Bh7 {[%clk 0:02:20]} 6. h4 {[%clk 0:01:46]}  c5 {[%clk 0:02:14]} 7. g5 {[%clk 0:01:39]}  cxd4 {[%clk 0:02:07]} 8. Qxd4 {[%clk 0:01:26]}  Nc6 {[%clk 0:02:08]} 9. Qa4 {[%clk 0:01:26]}  hxg5 {[%clk 0:02:00]} 10. hxg5 {[%clk 0:01:27]}  Bxc2 {[%clk 0:01:54]} 11. Rxh8 {[%clk 0:01:11]}  Bxa4 {[%clk 0:01:47]} 12. gxf6 {[%clk 0:01:11]}  exf6 {[%clk 0:01:41]} 13. Nxa4 {[%clk 0:01:12]}  Qa5+ {[%clk 0:01:36]} 14. Nc3 {[%clk 0:01:10]}  d4 {[%clk 0:01:36]} 15. Bd6 {[%clk 0:01:08]}  Kd7 {[%clk 0:01:25]} 16. Rxf8 {[%clk 0:01:02]}  Rxf8 {[%clk 0:01:20]} 17. Bxf8 {[%clk 0:01:03]}  dxc3 {[%clk 0:01:20]} 18. O-O-O+ {[%clk 0:01:00]}  Ke8 {[%clk 0:01:18]} 19. Ba3 {[%clk 0:01:00]}  Qg5+ {[%clk 0:01:10]} 20. e3 {[%clk 0:00:53]}  Qxg1 {[%clk 0:01:10]} 21. Bc5 {[%clk 0:00:38]}  cxb2+ {[%clk 0:00:53]} 22. Kxb2 {[%clk 0:00:39]}  Qf2+ {[%clk 0:00:52]} 23. Kc1 {[%clk 0:00:31]}  Qxa2 {[%clk 0:00:50]} 24. Bd3 {[%clk 0:00:25]}  Qa5 {[%clk 0:00:35]} 25. Bd6 {[%clk 0:00:21]}  Qa1+ {[%clk 0:00:20]} 26. Kd2 {[%clk 0:00:17]}  Qa2+ {[%clk 0:00:15]} 27. Ke1 {[%clk 0:00:09]}  Qd5 {[%clk 0:00:16]} 28. Be2 {[%clk 0:00:09]}  Qa5+ {[%clk 0:00:15]} 29. Kf2 {[%clk 0:00:08]}  Ne5 {[%clk 0:00:15]} 30. Bxe5 {[%clk 0:00:04]}  fxe5 {[%clk 0:00:16]} 31. Rb1 {[%clk 0:00:03]}  b6 {[%clk 0:00:15]} 32. Rb5 {[%clk 0:00:02]}  Qc3 {[%clk 0:00:13]} 33. Rd5 {[%clk 0:00:02]}  f6 {[%clk 0:00:12]} 34. Rd3 {[%clk 0:00:02]}  Qc2 {[%clk 0:00:12]} 35. Ke1 {[%clk 0:00:02]}  Ke7 {[%clk 0:00:11]} 36. Rd2 {[%clk 0:00:02]}  Qc1+ {[%clk 0:00:11]} 37. Rd1 {[%clk 0:00:02]}  Qc3+ {[%clk 0:00:12]} 38. Kf2 {[%clk 0:00:01]}  a5 {[%clk 0:00:13]} 39. Rd3 {[%clk 0:00:02]}  Qc2 {[%clk 0:00:12]} 40. Rd5 {[%clk 0:00:01]}  a4 {[%clk 0:00:11]} 41. Rb5 {[%clk 0:00:02]}  a3 {[%clk 0:00:11]} 42. Rxb6 {[%clk 0:00:02]}  a2 {[%clk 0:00:11]} 43. Rb7+ {[%clk 0:00:02]}  Kf8 {[%clk 0:00:11]} 44. Rb8+ {[%clk 0:00:03]}  Kf7 {[%clk 0:00:11]} 45. Rb7+ {[%clk 0:00:03]}  Kg6 {[%clk 0:00:11]} 46. Ra7 {[%clk 0:00:04]}  Qb1 {[%clk 0:00:07]} 47. Kg3 {[%clk 0:00:03]}  a1=Q {[%clk 0:00:06]} 48. Bd3+ {[%clk 0:00:03]}  Qxd3 {[%clk 0:00:05]} 49. Rxa1 {[%clk 0:00:03]}  Qxe3 {[%clk 0:00:05]} 50. Rf1 {[%clk 0:00:03]}  Qf4+ {[%clk 0:00:06]} 51. Kg2 {[%clk 0:00:02]}  e4 {[%clk 0:00:06]} 52. fxe4 {[%clk 0:00:02]}  Qxe4+ {[%clk 0:00:07]} 53. Kg1 {[%clk 0:00:02]}  Qg4+ {[%clk 0:00:07]} 54. Kf2 {[%clk 0:00:02]}  Qf4+ {[%clk 0:00:06]} 55. Kg1 {[%clk 0:00:03]}  Qxf1+ {[%clk 0:00:06]} 56. Kxf1 {[%clk 0:00:04]}  Kf5 {[%clk 0:00:06]} 0-1


[Site "https://www.chess.com"]

[Event "Titled Tuesday Blitz March 07 Early 2023"]
[White "TimGrutter03"]
[Black "Osinovsky, Stepan"]
[BlackFideId "4157354"]
[WhiteElo "2489"]
[BlackElo "2222"]
[Result "0-1"]
[Round "10"]
[TimeControl "180+2"]
[Date "2023.03.07"]
[WhiteClock "0:00:02"]
[BlackClock "0:00:16"]

1. e4 {[%clk 0:02:58]}  e5 {[%clk 0:02:59]} 2. Nf3 {[%clk 0:02:55]}  Nc6 {[%clk 0:03:00]} 3. Bc4 {[%clk 0:02:54]}  Nf6 {[%clk 0:02:59]} 4. d3 {[%clk 0:02:51]}  Be7 {[%clk 0:02:55]} 5. O-O {[%clk 0:02:49]}  d5 {[%clk 0:02:54]} 6. exd5 {[%clk 0:02:48]}  Nxd5 {[%clk 0:02:55]} 7. Re1 {[%clk 0:02:48]}  Bg4 {[%clk 0:02:55]} 8. h3 {[%clk 0:02:41]}  Bh5 {[%clk 0:02:49]} 9. g4 {[%clk 0:02:36]}  Bg6 {[%clk 0:02:48]} 10. Nxe5 {[%clk 0:02:37]}  Nxe5 {[%clk 0:02:49]} 11. Rxe5 {[%clk 0:02:37]}  Nb6 {[%clk 0:02:49]} 12. Qe2 {[%clk 0:02:24]}  f6 {[%clk 0:02:48]} 13. Re3 {[%clk 0:02:16]}  Nxc4 {[%clk 0:02:46]} 14. dxc4 {[%clk 0:02:14]}  Kf7 {[%clk 0:02:46]} 15. Nc3 {[%clk 0:02:09]}  Qd7 {[%clk 0:02:08]} 16. Nd5 {[%clk 0:01:56]}  Bc5 {[%clk 0:02:07]} 17. Rf3 {[%clk 0:01:57]}  c6 {[%clk 0:02:01]} 18. Be3 {[%clk 0:01:47]}  Rhe8 {[%clk 0:01:53]} 19. Nc3 {[%clk 0:01:35]}  Bb4 {[%clk 0:01:25]} 20. Rd1 {[%clk 0:01:27]}  Qe6 {[%clk 0:01:25]} 21. Qd2 {[%clk 0:00:55]}  Rad8 {[%clk 0:01:19]} 22. Qxd8 {[%clk 0:00:52]}  Rxd8 {[%clk 0:01:19]} 23. Rxd8 {[%clk 0:00:53]}  Bxc3 {[%clk 0:01:13]} 24. bxc3 {[%clk 0:00:54]}  Be4 {[%clk 0:01:13]} 25. Rg3 {[%clk 0:00:41]}  Qxc4 {[%clk 0:00:39]} 26. Rd7+ {[%clk 0:00:32]}  Kg6 {[%clk 0:00:36]} 27. g5 {[%clk 0:00:26]}  f5 {[%clk 0:00:30]} 28. Bd4 {[%clk 0:00:26]}  f4 {[%clk 0:00:23]} 29. Rg4 {[%clk 0:00:19]}  Qe2 {[%clk 0:00:18]} 30. Rxg7+ {[%clk 0:00:07]}  Kh5 {[%clk 0:00:17]} 31. Rxf4 {[%clk 0:00:01]}  Qd1+ {[%clk 0:00:16]} 32. Kh2 {[%clk 0:00:01]}  Qh1+ {[%clk 0:00:16]} 33. Kg3 {[%clk 0:00:02]}  Qg2# {[%clk 0:00:16]} 0-1


[Site "https://www.chess.com"]

[Event "Titled Tuesday Blitz March 07 Early 2023"]
[White "Estrada Nieto, Julian"]
[Black "Leve, Nitai"]
[WhiteFideId "5101018"]
[BlackFideId "2006898"]
[WhiteElo "2176"]
[BlackElo "2144"]
[Result "1-0"]
[Round "10"]
[TimeControl "180+2"]
[Date "2023.03.07"]
[WhiteClock "0:00:34"]
[BlackClock "0:00:03"]

1. e4 {[%clk 0:03:00]}  e6 {[%clk 0:02:56]} 2. d4 {[%clk 0:02:59]}  d5 {[%clk 0:02:55]} 3. Nd2 {[%clk 0:02:59]}  Nf6 {[%clk 0:02:55]} 4. e5 {[%clk 0:02:59]}  Nfd7 {[%clk 0:02:53]} 5. Bd3 {[%clk 0:03:00]}  c5 {[%clk 0:02:52]} 6. c3 {[%clk 0:03:00]}  Nc6 {[%clk 0:02:52]} 7. Ne2 {[%clk 0:03:00]}  cxd4 {[%clk 0:02:51]} 8. cxd4 {[%clk 0:03:01]}  f6 {[%clk 0:02:52]} 9. exf6 {[%clk 0:02:57]}  Nxf6 {[%clk 0:02:53]} 10. Nf3 {[%clk 0:02:57]}  Qc7 {[%clk 0:02:50]} 11. O-O {[%clk 0:02:50]}  Bd6 {[%clk 0:02:50]} 12. Bg5 {[%clk 0:02:50]}  O-O {[%clk 0:02:48]} 13. Bh4 {[%clk 0:02:51]}  Nh5 {[%clk 0:02:47]} 14. Qc2 {[%clk 0:02:50]}  h6 {[%clk 0:02:38]} 15. Bh7+ {[%clk 0:02:46]}  Kh8 {[%clk 0:02:36]} 16. Bg6 {[%clk 0:02:47]}  Nf4 {[%clk 0:02:23]} 17. Nxf4 {[%clk 0:02:46]}  Rxf4 {[%clk 0:02:16]} 18. Bg3 {[%clk 0:02:42]}  Rf6 {[%clk 0:02:15]} 19. Rfe1 {[%clk 0:02:05]}  Bd7 {[%clk 0:02:04]} 20. Ne5 {[%clk 0:01:51]}  Raf8 {[%clk 0:01:53]} 21. Rac1 {[%clk 0:01:26]}  Qd8 {[%clk 0:01:07]} 22. Nxc6 {[%clk 0:01:17]}  Bxc6 {[%clk 0:01:01]} 23. Bh4 {[%clk 0:01:14]}  Qa5 {[%clk 0:00:33]} 24. Bxf6 {[%clk 0:01:10]}  Rxf6 {[%clk 0:00:18]} 25. a3 {[%clk 0:00:55]}  Qb6 {[%clk 0:00:12]} 26. Qd3 {[%clk 0:00:44]}  Bf4 {[%clk 0:00:09]} 27. Rc2 {[%clk 0:00:38]}  a6 {[%clk 0:00:03]} 28. Bh5 {[%clk 0:00:34]} 1-0


[Site "https://www.chess.com"]

[Event "Titled Tuesday Blitz March 07 Early 2023"]
[White "Carrasco Miranda, Andres"]
[Black "surrenderPLS"]
[WhiteFideId "3405990"]
[WhiteElo "2183"]
[BlackElo "2481"]
[Result "0-1"]
[Round "10"]
[TimeControl "180+2"]
[Date "2023.03.07"]
[WhiteClock "0:00:20"]
[BlackClock "0:00:38"]

1. d4 {[%clk 0:03:00]}  Nf6 {[%clk 0:02:59]} 2. c4 {[%clk 0:03:01]}  g6 {[%clk 0:02:59]} 3. g3 {[%clk 0:03:01]}  Bg7 {[%clk 0:03:00]} 4. Bg2 {[%clk 0:03:01]}  O-O {[%clk 0:03:00]} 5. Nc3 {[%clk 0:03:02]}  d6 {[%clk 0:03:00]} 6. Nf3 {[%clk 0:03:02]}  c6 {[%clk 0:03:00]} 7. O-O {[%clk 0:03:02]}  Qb6 {[%clk 0:02:56]} 8. e4 {[%clk 0:02:54]}  Bg4 {[%clk 0:02:53]} 9. Rb1 {[%clk 0:02:47]}  Nfd7 {[%clk 0:02:48]} 10. Be3 {[%clk 0:02:45]}  Bxf3 {[%clk 0:02:43]} 11. Bxf3 {[%clk 0:02:44]}  c5 {[%clk 0:02:44]} 12. Nd5 {[%clk 0:02:43]}  Qd8 {[%clk 0:02:41]} 13. b4 {[%clk 0:02:38]}  cxd4 {[%clk 0:02:37]} 14. Bxd4 {[%clk 0:02:38]}  Bxd4 {[%clk 0:02:37]} 15. Qxd4 {[%clk 0:02:39]}  Nc6 {[%clk 0:02:38]} 16. Qc3 {[%clk 0:02:31]}  e6 {[%clk 0:02:24]} 17. Ne3 {[%clk 0:02:27]}  e5 {[%clk 0:02:24]} 18. Rfd1 {[%clk 0:02:24]}  Nd4 {[%clk 0:02:23]} 19. Rxd4 {[%clk 0:02:24]}  exd4 {[%clk 0:02:23]} 20. Qxd4 {[%clk 0:02:25]}  Qf6 {[%clk 0:02:22]} 21. Qxf6 {[%clk 0:02:17]}  Nxf6 {[%clk 0:02:22]} 22. Rd1 {[%clk 0:02:18]}  Rfd8 {[%clk 0:02:15]} 23. a4 {[%clk 0:02:12]}  Rac8 {[%clk 0:02:04]} 24. a5 {[%clk 0:02:11]}  Kg7 {[%clk 0:02:02]} 25. Kg2 {[%clk 0:02:08]}  h5 {[%clk 0:01:56]} 26. h3 {[%clk 0:02:08]}  Kf8 {[%clk 0:01:45]} 27. Rd4 {[%clk 0:02:05]}  Ke7 {[%clk 0:01:43]} 28. Be2 {[%clk 0:01:52]}  b6 {[%clk 0:01:34]} 29. a6 {[%clk 0:01:50]}  Rc6 {[%clk 0:01:23]} 30. b5 {[%clk 0:01:47]}  Rc5 {[%clk 0:01:23]} 31. f4 {[%clk 0:01:38]}  Kf8 {[%clk 0:01:17]} 32. e5 {[%clk 0:01:26]}  Ne8 {[%clk 0:01:10]} 33. Bf3 {[%clk 0:01:17]}  Rcc8 {[%clk 0:01:08]} 34. exd6 {[%clk 0:01:05]}  Rxd6 {[%clk 0:01:08]} 35. Bd5 {[%clk 0:00:57]}  Nf6 {[%clk 0:01:05]} 36. Kf3 {[%clk 0:00:53]}  Rc5 {[%clk 0:00:56]} 37. g4 {[%clk 0:00:49]}  hxg4+ {[%clk 0:00:55]} 38. hxg4 {[%clk 0:00:50]}  Kg7 {[%clk 0:00:53]} 39. g5 {[%clk 0:00:48]}  Ne8 {[%clk 0:00:53]} 40. f5 {[%clk 0:00:45]}  f6 {[%clk 0:00:48]} 41. fxg6 {[%clk 0:00:41]}  Kxg6 {[%clk 0:00:48]} 42. Be4+ {[%clk 0:00:37]}  Kxg5 {[%clk 0:00:44]} 43. Nd5 {[%clk 0:00:30]}  f5 {[%clk 0:00:41]} 44. Bd3 {[%clk 0:00:27]}  Nf6 {[%clk 0:00:39]} 45. Rf4 {[%clk 0:00:23]}  Nxd5 {[%clk 0:00:39]} 46. Rxf5+ {[%clk 0:00:23]}  Kh6 {[%clk 0:00:39]} 47. cxd5 {[%clk 0:00:21]}  Rcxd5 {[%clk 0:00:38]} 48. Rxd5 {[%clk 0:00:19]}  Rxd5 {[%clk 0:00:39]} 49. Ke4 {[%clk 0:00:19]}  Rc5 {[%clk 0:00:37]} 50. Kd4 {[%clk 0:00:19]}  Kg5 {[%clk 0:00:38]} 51. Be4 {[%clk 0:00:20]}  Rxb5 {[%clk 0:00:37]} 52. Bb7 {[%clk 0:00:20]}  Rc5 {[%clk 0:00:38]} 0-1


[Site "https://www.chess.com"]

[Event "Titled Tuesday Blitz March 07 Early 2023"]
[White "Tsatsalashvili, Keti"]
[Black "Womacka, Mathias"]
[WhiteFideId "13603434"]
[BlackFideId "4611390"]
[WhiteElo "2220"]
[BlackElo "2377"]
[Result "0-1"]
[Round "10"]
[TimeControl "180+2"]
[Date "2023.03.07"]
[WhiteClock "0:00:27"]
[BlackClock "0:00:16"]

1. d4 {[%clk 0:03:00]}  Nf6 {[%clk 0:02:54]} 2. c4 {[%clk 0:03:00]}  e6 {[%clk 0:02:54]} 3. Nf3 {[%clk 0:02:58]}  Bb4+ {[%clk 0:02:53]} 4. Nbd2 {[%clk 0:02:57]}  O-O {[%clk 0:02:52]} 5. g3 {[%clk 0:02:57]}  b6 {[%clk 0:02:51]} 6. Bg2 {[%clk 0:02:57]}  Bb7 {[%clk 0:02:51]} 7. O-O {[%clk 0:02:58]}  Be7 {[%clk 0:02:50]} 8. Qc2 {[%clk 0:02:56]}  c5 {[%clk 0:02:48]} 9. e4 {[%clk 0:02:51]}  d5 {[%clk 0:02:08]} 10. e5 {[%clk 0:02:49]}  Nfd7 {[%clk 0:02:04]} 11. cxd5 {[%clk 0:02:48]}  Bxd5 {[%clk 0:02:02]} 12. dxc5 {[%clk 0:02:43]}  Nxc5 {[%clk 0:01:55]} 13. h4 {[%clk 0:02:43]}  Nc6 {[%clk 0:01:48]} 14. a3 {[%clk 0:02:37]}  a5 {[%clk 0:01:46]} 15. Rd1 {[%clk 0:02:35]}  a4 {[%clk 0:01:42]} 16. Nf1 {[%clk 0:02:33]}  Qc7 {[%clk 0:01:33]} 17. Ne3 {[%clk 0:02:24]}  Bb3 {[%clk 0:01:32]} 18. Qe2 {[%clk 0:02:16]}  Bxd1 {[%clk 0:01:31]} 19. Nxd1 {[%clk 0:02:13]}  Nb3 {[%clk 0:01:18]} 20. Rb1 {[%clk 0:02:09]}  Rad8 {[%clk 0:00:52]} 21. Bg5 {[%clk 0:02:08]}  Ncd4 {[%clk 0:00:47]} 22. Nxd4 {[%clk 0:02:03]}  Nxd4 {[%clk 0:00:47]} 23. Qg4 {[%clk 0:02:01]}  Bxg5 {[%clk 0:00:45]} 24. hxg5 {[%clk 0:02:00]}  Qxe5 {[%clk 0:00:44]} 25. Ne3 {[%clk 0:01:58]}  Nf5 {[%clk 0:00:36]} 26. Nxf5 {[%clk 0:01:27]}  Qxf5 {[%clk 0:00:37]} 27. Qxf5 {[%clk 0:01:24]}  exf5 {[%clk 0:00:38]} 28. Bc6 {[%clk 0:01:21]}  Rd4 {[%clk 0:00:36]} 29. Re1 {[%clk 0:01:18]}  Rfd8 {[%clk 0:00:31]} 30. Re7 {[%clk 0:01:00]}  Rd2 {[%clk 0:00:27]} 31. Bxa4 {[%clk 0:00:56]}  Rxb2 {[%clk 0:00:27]} 32. Bc6 {[%clk 0:00:50]}  g6 {[%clk 0:00:21]} 33. a4 {[%clk 0:00:49]}  Rdd2 {[%clk 0:00:18]} 34. f4 {[%clk 0:00:27]}  Rd1+ {[%clk 0:00:16]} 0-1


[Site "https://www.chess.com"]

[Event "Titled Tuesday Blitz March 07 Early 2023"]
[White "Dudzinski, Pawel"]
[Black "Szente Varga, Fruzsina"]
[WhiteFideId "1117890"]
[BlackFideId "712264"]
[WhiteElo "2099"]
[BlackElo "1994"]
[Result "1-0"]
[Round "10"]
[TimeControl "180+2"]
[Date "2023.03.07"]
[WhiteClock "0:00:43"]
[BlackClock "0:00:02"]

1. e4 {[%clk 0:03:00]}  Nf6 {[%clk 0:02:59]} 2. Nc3 {[%clk 0:02:57]}  d5 {[%clk 0:02:59]} 3. e5 {[%clk 0:02:56]}  Nfd7 {[%clk 0:02:59]} 4. f4 {[%clk 0:02:54]}  e6 {[%clk 0:03:00]} 5. Nf3 {[%clk 0:02:54]}  c5 {[%clk 0:03:00]} 6. d4 {[%clk 0:02:54]}  Nc6 {[%clk 0:03:01]} 7. Be3 {[%clk 0:02:52]}  Qb6 {[%clk 0:03:00]} 8. Qd2 {[%clk 0:02:52]}  cxd4 {[%clk 0:02:34]} 9. Nxd4 {[%clk 0:02:51]}  Bc5 {[%clk 0:02:22]} 10. O-O-O {[%clk 0:02:41]}  Bxd4 {[%clk 0:02:17]} 11. Bxd4 {[%clk 0:02:41]}  Qxd4 {[%clk 0:02:17]} 12. Qxd4 {[%clk 0:02:42]}  Nxd4 {[%clk 0:02:18]} 13. Rxd4 {[%clk 0:02:43]}  O-O {[%clk 0:02:17]} 14. Nb5 {[%clk 0:02:42]}  Nc5 {[%clk 0:02:12]} 15. Nd6 {[%clk 0:02:32]}  Bd7 {[%clk 0:02:11]} 16. Bd3 {[%clk 0:02:16]}  f6 {[%clk 0:01:57]} 17. b4 {[%clk 0:02:02]}  fxe5 {[%clk 0:01:46]} 18. fxe5 {[%clk 0:02:02]}  Nxd3+ {[%clk 0:01:43]} 19. Rxd3 {[%clk 0:02:00]}  Rf4 {[%clk 0:01:33]} 20. c3 {[%clk 0:01:55]}  Rf2 {[%clk 0:01:24]} 21. Rd2 {[%clk 0:01:54]}  Raf8 {[%clk 0:01:23]} 22. Nxb7 {[%clk 0:01:48]}  Rxd2 {[%clk 0:01:12]} 23. Kxd2 {[%clk 0:01:49]}  Rf2+ {[%clk 0:01:13]} 24. Ke3 {[%clk 0:01:50]}  Rxa2 {[%clk 0:01:04]} 25. Nc5 {[%clk 0:01:48]}  Bc8 {[%clk 0:01:02]} 26. g4 {[%clk 0:01:44]}  Kf7 {[%clk 0:00:57]} 27. Rf1+ {[%clk 0:01:43]}  Ke7 {[%clk 0:00:58]} 28. Rf2 {[%clk 0:01:42]}  Ra1 {[%clk 0:00:49]} 29. Nd3 {[%clk 0:01:33]}  Ba6 {[%clk 0:00:33]} 30. Nc5 {[%clk 0:01:28]}  Bc4 {[%clk 0:00:33]} 31. h4 {[%clk 0:01:24]}  a5 {[%clk 0:00:32]} 32. bxa5 {[%clk 0:01:19]}  Rxa5 {[%clk 0:00:33]} 33. Kd4 {[%clk 0:01:19]}  Ra2 {[%clk 0:00:21]} 34. Rxa2 {[%clk 0:01:13]}  Bxa2 {[%clk 0:00:22]} 35. Nb7 {[%clk 0:01:10]}  Bc4 {[%clk 0:00:19]} 36. Kc5 {[%clk 0:01:10]}  Be2 {[%clk 0:00:18]} 37. g5 {[%clk 0:01:09]}  h6 {[%clk 0:00:18]} 38. gxh6 {[%clk 0:01:09]}  gxh6 {[%clk 0:00:19]} 39. Na5 {[%clk 0:01:08]}  Kd7 {[%clk 0:00:17]} 40. Kb6 {[%clk 0:01:07]}  Bd3 {[%clk 0:00:16]} 41. Nc6 {[%clk 0:01:07]}  Bf1 {[%clk 0:00:15]} 42. Nb8+ {[%clk 0:01:06]}  Ke7 {[%clk 0:00:14]} 43. Kc7 {[%clk 0:01:06]}  Bc4 {[%clk 0:00:13]} 44. Nc6+ {[%clk 0:01:07]}  Kf7 {[%clk 0:00:10]} 45. Kd6 {[%clk 0:01:06]}  Kg6 {[%clk 0:00:04]} 46. Nd4 {[%clk 0:01:04]}  Kh5 {[%clk 0:00:01]} 47. Nxe6 {[%clk 0:01:05]}  Kxh4 {[%clk 0:00:01]} 48. Nf4 {[%clk 0:01:05]}  Kg5 {[%clk 0:00:02]} 49. Nxd5 {[%clk 0:01:05]}  h5 {[%clk 0:00:02]} 50. e6 {[%clk 0:01:05]}  h4 {[%clk 0:00:01]} 51. e7 {[%clk 0:01:02]}  Bb5 {[%clk 0:00:01]} 52. c4 {[%clk 0:00:46]}  Be8 {[%clk 0:00:02]} 53. Ne3 {[%clk 0:00:43]}  h3 {[%clk 0:00:01]} 54. Nf1 {[%clk 0:00:43]}  Kf6 {[%clk 0:00:01]} 55. c5 {[%clk 0:00:43]}  Kf7 {[%clk 0:00:01]} 56. Nh2 {[%clk 0:00:41]}  Kf6 {[%clk 0:00:01]} 57. Nf3 {[%clk 0:00:42]}  Kf7 {[%clk 0:00:01]} 58. Ng5+ {[%clk 0:00:42]}  Kf6 {[%clk 0:00:02]} 59. Nxh3 {[%clk 0:00:43]} 1-0


[Site "https://www.chess.com"]